[Event "Late-Titled-Tuesday-Blitz-March-19-2024"]
[Site "Chess.com"]
[Date "2024.03.19"]
[Round "4"]
[White "malakismayil"]
[Black "javierfreilemartin"]
[Result "0-1"]
[WhiteElo "2513"]
[BlackElo "2330"]
[TimeControl "180+1"]
[EndTime "14:40:06 PDT"]
[Termination "javierfreilemartin won by checkmate"]

1. e4 {[%clk 0:03:00.9]} 1... c5 {[%clk 0:02:59]} 2. Nf3 {[%clk 0:03:01.4]} 2...
e6 {[%clk 0:02:59]} 3. c3 {[%clk 0:03:01.3]} 3... d6 {[%clk 0:02:49.2]} 4. d4
{[%clk 0:02:59.8]} 4... Nd7 {[%clk 0:02:49.1]} 5. Be2 {[%clk 0:02:57.4]} 5...
Qc7 {[%clk 0:02:49.1]} 6. O-O {[%clk 0:02:56.4]} 6... Ngf6 {[%clk 0:02:49.3]} 7.
Nbd2 {[%clk 0:02:53.3]} 7... a6 {[%clk 0:02:48]} 8. Re1 {[%clk 0:02:50.2]} 8...
b6 {[%clk 0:02:47.3]} 9. Bd3 {[%clk 0:02:48.7]} 9... Bb7 {[%clk 0:02:47.2]} 10.
Qe2 {[%clk 0:02:49.4]} 10... cxd4 {[%clk 0:02:44.5]} 11. cxd4 {[%clk 0:02:48.7]}
11... Be7 {[%clk 0:02:45]} 12. Nb3 {[%clk 0:02:46.6]} 12... O-O {[%clk
0:02:41.9]} 13. Bg5 {[%clk 0:02:45.7]} 13... Rfc8 {[%clk 0:02:34.6]} 14. e5
{[%clk 0:02:25.2]} 14... Bxf3 {[%clk 0:02:24.9]} 15. Qxf3 {[%clk 0:02:16.9]}
15... dxe5 {[%clk 0:02:24.9]} 16. dxe5 {[%clk 0:02:17.3]} 16... Nxe5 {[%clk
0:02:24.1]} 17. Qg3 {[%clk 0:02:15.7]} 17... Nxd3 {[%clk 0:02:21]} 18. Qxd3
{[%clk 0:02:13.4]} 18... Qc4 {[%clk 0:02:16.7]} 19. Qe3 {[%clk 0:02:09.5]} 19...
Nd5 {[%clk 0:02:15.1]} 20. Qg3 {[%clk 0:02:06.4]} 20... Bxg5 {[%clk 0:02:13.2]}
21. Qxg5 {[%clk 0:02:07.3]} 21... h6 {[%clk 0:02:12.5]} 22. Qg3 {[%clk
0:02:03.5]} 22... Qf4 {[%clk 0:02:10.4]} 23. Qd3 {[%clk 0:02:02.4]} 23... Nb4
{[%clk 0:02:02.6]} 24. Qd7 {[%clk 0:01:51.3]} 24... Nc2 {[%clk 0:01:58.4]} 25.
Rac1 {[%clk 0:01:48.1]} 25... Rd8 {[%clk 0:01:49.3]} 26. Qb7 {[%clk 0:01:43.2]}
26... Nxe1 {[%clk 0:01:47.1]} 27. Rxe1 {[%clk 0:01:44.1]} 27... Qe5 {[%clk
0:01:39.7]} 28. Rb1 {[%clk 0:01:35.9]} 28... Qxb2 {[%clk 0:01:38.2]} 29. Rf1
{[%clk 0:01:29.5]} 29... b5 {[%clk 0:01:35.2]} 30. Na5 {[%clk 0:01:23.1]} 30...
Qxa2 {[%clk 0:01:30.7]} 31. Nc6 {[%clk 0:01:22.1]} 31... Re8 {[%clk 0:01:24.7]}
32. Ne7+ {[%clk 0:01:16.7]} 32... Kf8 {[%clk 0:01:23]} 33. Nc6 {[%clk
0:01:15.8]} 33... Qd5 {[%clk 0:01:20]} 34. Qb6 {[%clk 0:01:15.7]} 34... Qd6
{[%clk 0:01:09.5]} 35. Qb7 {[%clk 0:01:00.3]} 35... Rec8 {[%clk 0:01:00.4]} 36.
Na5 {[%clk 0:01:00.2]} 36... Rab8 {[%clk 0:00:53.9]} 37. Qf3 {[%clk 0:00:51.9]}
37... Qd5 {[%clk 0:00:51.8]} 38. Qg3 {[%clk 0:00:46.7]} 38... b4 {[%clk
0:00:50.5]} 39. Nb3 {[%clk 0:00:39.2]} 39... a5 {[%clk 0:00:49.6]} 40. h4 {[%clk
0:00:32.6]} 40... a4 {[%clk 0:00:49.5]} 41. Nc1 {[%clk 0:00:31.6]} 41... b3
{[%clk 0:00:49.2]} 42. Ne2 {[%clk 0:00:32.1]} 42... b2 {[%clk 0:00:47.7]} 43.
Nc3 {[%clk 0:00:32.2]} 43... Rxc3 {[%clk 0:00:46.6]} 44. Qxb8+ {[%clk
0:00:30.8]} 44... Ke7 {[%clk 0:00:42.2]} 45. Qxb2 {[%clk 0:00:31.2]} 45... Rb3
{[%clk 0:00:40.1]} 46. Qc2 {[%clk 0:00:16.4]} 46... a3 {[%clk 0:00:36]} 47. Qc7+
{[%clk 0:00:16.1]} 47... Kf6 {[%clk 0:00:33.9]} 48. Qa7 {[%clk 0:00:11.1]} 48...
Rd3 {[%clk 0:00:30]} 49. Qa6 {[%clk 0:00:04.9]} 49... a2 {[%clk 0:00:28.1]} 50.
Kh2 {[%clk 0:00:02.9]} 50... Rd4 {[%clk 0:00:20.6]} 51. g3 {[%clk 0:00:02.8]}
51... Rd2 {[%clk 0:00:19.8]} 52. Qa3 {[%clk 0:00:02]} 52... Qe5 {[%clk
0:00:17.8]} 53. Kg2 {[%clk 0:00:01.2]} 53... g5 {[%clk 0:00:17.4]} 54. hxg5+
{[%clk 0:00:01.3]} 54... hxg5 {[%clk 0:00:17.3]} 55. Qa4 {[%clk 0:00:01.9]}
55... Rb2 {[%clk 0:00:14.3]} 56. Kh2 {[%clk 0:00:02.1]} 56... Rb1 {[%clk
0:00:14.2]} 57. Qxa2 {[%clk 0:00:01.7]} 57... Rxf1 {[%clk 0:00:13.6]} 58. Qc2
{[%clk 0:00:02.6]} 58... Qd5 {[%clk 0:00:10.9]} 59. Qc3+ {[%clk 0:00:01.3]}
59... Kg6 {[%clk 0:00:10.6]} 60. Qc2+ {[%clk 0:00:01.8]} 60... f5 {[%clk
0:00:10.4]} 61. f3 {[%clk 0:00:01.7]} 61... Rxf3 {[%clk 0:00:08.9]} 62. Qg2
{[%clk 0:00:01.9]} 62... g4 {[%clk 0:00:08]} 63. Kh1 {[%clk 0:00:01.6]} 63...
Qd1+ {[%clk 0:00:07.6]} 64. Kh2 {[%clk 0:00:02.3]} 64... Qf1 {[%clk 0:00:07.7]}
65. Qxf1 {[%clk 0:00:02.4]} 65... Rxf1 {[%clk 0:00:07.4]} 66. Kg2 {[%clk
0:00:03.3]} 66... Rf3 {[%clk 0:00:07.3]} 67. Kh2 {[%clk 0:00:03.8]} 67... e5
{[%clk 0:00:08]} 68. Kg2 {[%clk 0:00:04.7]} 68... e4 {[%clk 0:00:08.7]} 69. Kh2
{[%clk 0:00:05.5]} 69... e3 {[%clk 0:00:08.3]} 70. Kg1 {[%clk 0:00:06.4]} 70...
e2 {[%clk 0:00:08.8]} 71. Kg2 {[%clk 0:00:07.3]} 71... e1=Q {[%clk 0:00:08.9]}
72. Kh2 {[%clk 0:00:08]} 72... Qe2+ {[%clk 0:00:09.3]} 73. Kh1 {[%clk
0:00:08.4]} 73... Rf1# {[%clk 0:00:09.9]} 0-1

[Event "Late-Titled-Tuesday-Blitz-March-19-2024"]
[Site "Chess.com"]
[Date "2024.03.19"]
[Round "4"]
[White "wallowss"]
[Black "VD_coach"]
[Result "0-1"]
[WhiteElo "2133"]
[BlackElo "2501"]
[TimeControl "180+1"]
[EndTime "14:40:12 PDT"]
[Termination "VD_coach won on time"]

1. d4 {[%clk 0:03:00.9]} 1... Nf6 {[%clk 0:02:59.7]} 2. Bg5 {[%clk 0:02:56.7]}
2... e6 {[%clk 0:02:59.3]} 3. e4 {[%clk 0:02:55.8]} 3... h6 {[%clk 0:02:59.6]}
4. Bxf6 {[%clk 0:02:55.7]} 4... Qxf6 {[%clk 0:03:00.5]} 5. c3 {[%clk 0:02:56.6]}
5... d6 {[%clk 0:03:00]} 6. Nd2 {[%clk 0:02:55]} 6... g6 {[%clk 0:03:00.5]} 7.
Bd3 {[%clk 0:02:55.5]} 7... Bg7 {[%clk 0:03:00.8]} 8. Ne2 {[%clk 0:02:56.1]}
8... O-O {[%clk 0:03:01.2]} 9. O-O {[%clk 0:02:56.8]} 9... Qe7 {[%clk 0:03:01]}
10. f4 {[%clk 0:02:57.4]} 10... c5 {[%clk 0:03:00.1]} 11. Nf3 {[%clk 0:02:56.9]}
11... Nc6 {[%clk 0:03:00.2]} 12. Bb5 {[%clk 0:02:52.3]} 12... cxd4 {[%clk
0:02:58.7]} 13. cxd4 {[%clk 0:02:47.7]} 13... Bd7 {[%clk 0:02:56.6]} 14. Rc1
{[%clk 0:02:43]} 14... Rac8 {[%clk 0:02:55.4]} 15. Qa4 {[%clk 0:02:32.8]} 15...
a6 {[%clk 0:02:55.3]} 16. Bxc6 {[%clk 0:02:17.4]} 16... Bxc6 {[%clk 0:02:56.2]}
17. Qc2 {[%clk 0:02:15.3]} 17... f5 {[%clk 0:02:39.7]} 18. e5 {[%clk 0:01:56.1]}
18... Bxf3 {[%clk 0:02:12.6]} 19. Qxc8 {[%clk 0:01:54.8]} 19... Bxe2 {[%clk
0:02:09.8]} 20. Qc7 {[%clk 0:01:48.7]} 20... Qxc7 {[%clk 0:02:09.3]} 21. Rxc7
{[%clk 0:01:49.6]} 21... Bxf1 {[%clk 0:02:09.3]} 22. Kxf1 {[%clk 0:01:49.9]}
22... dxe5 {[%clk 0:02:09.1]} 23. dxe5 {[%clk 0:01:48.4]} 23... Rf7 {[%clk
0:02:06.2]} 24. Rc8+ {[%clk 0:01:47.3]} 24... Bf8 {[%clk 0:02:04.9]} 25. Ke2
{[%clk 0:01:41.5]} 25... Kg7 {[%clk 0:02:03.8]} 26. g3 {[%clk 0:01:38.6]} 26...
g5 {[%clk 0:02:03.7]} 27. a3 {[%clk 0:01:38.4]} 27... a5 {[%clk 0:01:59.6]} 28.
Ra8 {[%clk 0:01:32.7]} 28... b6 {[%clk 0:01:57.1]} 29. Rc8 {[%clk 0:01:30.3]}
29... Bc5 {[%clk 0:01:56.2]} 30. Rc6 {[%clk 0:01:29.6]} 30... Re7 {[%clk
0:01:52.7]} 31. b4 {[%clk 0:01:28]} 31... axb4 {[%clk 0:01:52.5]} 32. axb4
{[%clk 0:01:28.9]} 32... Bxb4 {[%clk 0:01:52.6]} 33. Rxb6 {[%clk 0:01:29.5]}
33... Bc5 {[%clk 0:01:52.4]} 34. Rc6 {[%clk 0:01:29.4]} 34... Bg1 {[%clk
0:01:52.4]} 35. h3 {[%clk 0:01:27.4]} 35... Kf7 {[%clk 0:01:46.5]} 36. Kf1
{[%clk 0:01:20.4]} 36... Ba7 {[%clk 0:01:45]} 37. Ke2 {[%clk 0:01:12]} 37...
gxf4 {[%clk 0:01:44.1]} 38. gxf4 {[%clk 0:01:11.9]} 38... Bg1 {[%clk 0:01:42.8]}
39. Kf3 {[%clk 0:01:03.5]} 39... Rd7 {[%clk 0:01:40.6]} 40. Rc3 {[%clk
0:01:01.8]} 40... Bd4 {[%clk 0:01:35.8]} 41. Rb3 {[%clk 0:01:01.9]} 41... Ke7
{[%clk 0:01:35.6]} 42. Kg3 {[%clk 0:00:57.4]} 42... Rc7 {[%clk 0:01:28]} 43. Kh4
{[%clk 0:00:55.5]} 43... Bg1 {[%clk 0:01:00.7]} 44. Kh5 {[%clk 0:00:53]} 44...
Bh2 {[%clk 0:01:00]} 45. Rb4 {[%clk 0:00:46.4]} 45... Rc3 {[%clk 0:00:58]} 46.
Rb7+ {[%clk 0:00:38.6]} 46... Kd8 {[%clk 0:00:58]} 47. Kxh6 {[%clk 0:00:38.1]}
47... Bxf4+ {[%clk 0:00:56.6]} 48. Kg6 {[%clk 0:00:37.5]} 48... Bxe5 {[%clk
0:00:56.7]} 49. h4 {[%clk 0:00:28.7]} 49... f4 {[%clk 0:00:55.2]} 50. h5 {[%clk
0:00:19.4]} 50... f3 {[%clk 0:00:55.3]} 51. h6 {[%clk 0:00:16.5]} 51... f2
{[%clk 0:00:53.8]} 52. Rf7 {[%clk 0:00:16.9]} 52... Rg3+ {[%clk 0:00:53.9]} 53.
Kh5 {[%clk 0:00:15.3]} 53... Rg2 {[%clk 0:00:50.6]} 54. h7 {[%clk 0:00:10.7]}
54... Ke8 {[%clk 0:00:50.2]} 55. Rf3 {[%clk 0:00:10]} 55... Ke7 {[%clk
0:00:45.1]} 56. Kh4 {[%clk 0:00:08.8]} 56... Rh2+ {[%clk 0:00:39.3]} 57. Kg5
{[%clk 0:00:08.9]} 57... Rxh7 {[%clk 0:00:38.7]} 58. Rxf2 {[%clk 0:00:09]} 58...
Rg7+ {[%clk 0:00:39]} 59. Kh6 {[%clk 0:00:09.5]} 59... Rf7 {[%clk 0:00:39]} 60.
Re2 {[%clk 0:00:09.8]} 60... Bf6 {[%clk 0:00:36.3]} 61. Kg6 {[%clk 0:00:09.9]}
61... e5 {[%clk 0:00:36.5]} 62. Kf5 {[%clk 0:00:08.5]} 62... Bg7+ {[%clk
0:00:33.1]} 63. Ke4 {[%clk 0:00:08.8]} 63... Rf4+ {[%clk 0:00:33]} 64. Kd5
{[%clk 0:00:09.2]} 64... Rd4+ {[%clk 0:00:33.2]} 65. Kc5 {[%clk 0:00:08.4]}
65... Ke6 {[%clk 0:00:33]} 66. Rg2 {[%clk 0:00:07.8]} 66... Bf6 {[%clk
0:00:33.1]} 67. Rg8 {[%clk 0:00:06.2]} 67... Rd8 {[%clk 0:00:31.9]} 68. Rg2
{[%clk 0:00:05.8]} 68... e4 {[%clk 0:00:31.9]} 69. Re2 {[%clk 0:00:05.7]} 69...
Ke5 {[%clk 0:00:32.1]} 70. Kc4 {[%clk 0:00:06.4]} 70... Bg5 {[%clk 0:00:31.9]}
71. Rg2 {[%clk 0:00:05]} 71... Bf4 {[%clk 0:00:31.8]} 72. Rg1 {[%clk 0:00:03.5]}
72... e3 {[%clk 0:00:32.1]} 73. Re1 {[%clk 0:00:03.4]} 73... Ke4 {[%clk
0:00:32.2]} 74. Kc3 {[%clk 0:00:04.1]} 74... Rd2 {[%clk 0:00:29.7]} 75. Rh1
{[%clk 0:00:01.8]} 75... e2 {[%clk 0:00:29.1]} 0-1

[Event "Late-Titled-Tuesday-Blitz-March-19-2024"]
[Site "Chess.com"]
[Date "2024.03.19"]
[Round "4"]
[White "kinga2008"]
[Black "Statham_01"]
[Result "0-1"]
[WhiteElo "2377"]
[BlackElo "2572"]
[TimeControl "180+1"]
[EndTime "14:40:18 PDT"]
[Termination "Statham_01 won on time"]

1. d4 {[%clk 0:03:00.9]} 1... Nf6 {[%clk 0:02:58]} 2. c4 {[%clk 0:03:01.2]} 2...
e6 {[%clk 0:02:57.8]} 3. g3 {[%clk 0:03:01.7]} 3... d5 {[%clk 0:02:57.8]} 4. Nc3
{[%clk 0:03:02.1]} 4... dxc4 {[%clk 0:02:50.1]} 5. e4 {[%clk 0:02:58.6]} 5... c5
{[%clk 0:02:49.7]} 6. Be3 {[%clk 0:02:55.9]} 6... cxd4 {[%clk 0:02:47]} 7. Bxd4
{[%clk 0:02:53.2]} 7... Nc6 {[%clk 0:02:47.3]} 8. Nf3 {[%clk 0:02:44.7]} 8...
Nxd4 {[%clk 0:02:44.8]} 9. Nxd4 {[%clk 0:02:42.8]} 9... Bc5 {[%clk 0:02:38.5]}
10. Nf3 {[%clk 0:02:27.9]} 10... Qb6 {[%clk 0:02:21.1]} 11. Qc2 {[%clk
0:02:16.8]} 11... Ng4 {[%clk 0:02:17.1]} 12. Nd1 {[%clk 0:02:05.4]} 12... Bb4+
{[%clk 0:02:01.6]} 13. Nc3 {[%clk 0:02:02.6]} 13... Qc5 {[%clk 0:01:54.8]} 14.
h3 {[%clk 0:01:57.7]} 14... Bxc3+ {[%clk 0:01:49.4]} 15. bxc3 {[%clk 0:01:52.2]}
15... Nf6 {[%clk 0:01:42.6]} 16. Bg2 {[%clk 0:01:41.4]} 16... O-O {[%clk
0:01:35.7]} 17. O-O {[%clk 0:01:40.3]} 17... e5 {[%clk 0:01:27.3]} 18. Rfe1
{[%clk 0:01:32.2]} 18... b6 {[%clk 0:01:22.1]} 19. Rad1 {[%clk 0:01:26.7]} 19...
Bb7 {[%clk 0:01:21.4]} 20. g4 {[%clk 0:01:17]} 20... Rad8 {[%clk 0:01:18.5]} 21.
Nh4 {[%clk 0:01:13.4]} 21... g6 {[%clk 0:01:16]} 22. Nf3 {[%clk 0:01:11.2]}
22... Rxd1 {[%clk 0:01:10.1]} 23. Qxd1 {[%clk 0:01:09.9]} 23... Bxe4 {[%clk
0:01:06.7]} 24. Nd2 {[%clk 0:00:32]} 24... Bxg2 {[%clk 0:01:00.9]} 25. Kxg2
{[%clk 0:00:32.9]} 25... Qd5+ {[%clk 0:01:00.3]} 26. Nf3 {[%clk 0:00:30.2]}
26... Qxd1 {[%clk 0:00:48.7]} 27. Rxd1 {[%clk 0:00:31.1]} 27... e4 {[%clk
0:00:45.4]} 28. Ne5 {[%clk 0:00:21.5]} 28... Rc8 {[%clk 0:00:44.8]} 29. Rd6
{[%clk 0:00:18.7]} 29... Kg7 {[%clk 0:00:42.9]} 30. g5 {[%clk 0:00:16.3]} 30...
Ne8 {[%clk 0:00:37.6]} 31. Rd7 {[%clk 0:00:14]} 31... Rc7 {[%clk 0:00:38.1]} 32.
Rd8 {[%clk 0:00:13]} 32... Re7 {[%clk 0:00:32.2]} 33. Nxc4 {[%clk 0:00:12.7]}
33... b5 {[%clk 0:00:25.8]} 34. Ne3 {[%clk 0:00:10.6]} 34... Re5 {[%clk
0:00:25.6]} 35. h4 {[%clk 0:00:07.4]} 35... Nc7 {[%clk 0:00:23.7]} 36. Ng4
{[%clk 0:00:06.6]} 36... Re8 {[%clk 0:00:19.4]} 37. Rd7 {[%clk 0:00:06.7]} 37...
Ne6 {[%clk 0:00:18.3]} 38. Nh6 {[%clk 0:00:06.9]} 38... Rf8 {[%clk 0:00:15.1]}
39. Ng4 {[%clk 0:00:04.9]} 39... a5 {[%clk 0:00:10.6]} 40. Kg3 {[%clk
0:00:05.1]} 40... Rd8 {[%clk 0:00:10.7]} 41. Rb7 {[%clk 0:00:04.6]} 41... Rd3+
{[%clk 0:00:11.6]} 42. Kg2 {[%clk 0:00:05.1]} 42... Nf4+ {[%clk 0:00:11.1]} 43.
Kh2 {[%clk 0:00:02.5]} 43... Rh3+ {[%clk 0:00:11.2]} 44. Kg1 {[%clk 0:00:03]}
44... Rxh4 {[%clk 0:00:11.7]} 45. Ne5 {[%clk 0:00:03]} 45... Rh5 {[%clk
0:00:06.2]} 46. Rxf7+ {[%clk 0:00:02.5]} 46... Kg8 {[%clk 0:00:06.8]} 47. Rxf4
{[%clk 0:00:01.5]} 47... Rxg5+ {[%clk 0:00:07.4]} 48. Ng4 {[%clk 0:00:02]} 48...
h5 {[%clk 0:00:07.9]} 49. Rxe4 {[%clk 0:00:02]} 49... Rxg4+ {[%clk 0:00:04.8]}
50. Rxg4 {[%clk 0:00:02.5]} 50... hxg4 {[%clk 0:00:05.7]} 51. Kg2 {[%clk
0:00:03.4]} 51... Kf7 {[%clk 0:00:05.7]} 52. Kg3 {[%clk 0:00:04.2]} 52... Kf6
{[%clk 0:00:06.4]} 53. Kxg4 {[%clk 0:00:04.9]} 53... Ke5 {[%clk 0:00:04.2]} 54.
Kg5 {[%clk 0:00:05.4]} 54... Ke4 {[%clk 0:00:04.6]} 55. Kxg6 {[%clk 0:00:05.5]}
55... Kf3 {[%clk 0:00:02.4]} 56. Kf5 {[%clk 0:00:06.2]} 56... Kxf2 {[%clk
0:00:02.4]} 57. Ke4 {[%clk 0:00:07]} 57... Ke2 {[%clk 0:00:02.7]} 58. Kd4 {[%clk
0:00:07.8]} 58... Kd2 {[%clk 0:00:03]} 59. c4 {[%clk 0:00:04.8]} 59... b4 {[%clk
0:00:02.7]} 60. c5 {[%clk 0:00:05]} 60... a4 {[%clk 0:00:03.6]} 61. c6 {[%clk
0:00:04.3]} 61... b3 {[%clk 0:00:04.2]} 62. c7 {[%clk 0:00:03.7]} 62... bxa2
{[%clk 0:00:04.4]} 63. c8=Q {[%clk 0:00:04.3]} 63... a1=Q+ {[%clk 0:00:05.3]}
64. Ke4 {[%clk 0:00:03.9]} 64... Qb1+ {[%clk 0:00:05.4]} 65. Kf3 {[%clk
0:00:03.6]} 65... Qb3+ {[%clk 0:00:05]} 0-1

[Event "Late-Titled-Tuesday-Blitz-March-19-2024"]
[Site "Chess.com"]
[Date "2024.03.19"]
[Round "4"]
[White "Byniolus"]
[Black "platy3"]
[Result "0-1"]
[WhiteElo "2792"]
[BlackElo "2962"]
[TimeControl "180+1"]
[EndTime "14:40:24 PDT"]
[Termination "platy3 won by checkmate"]

1. d4 {[%clk 0:03:00.9]} 1... Nf6 {[%clk 0:03:00.9]} 2. Nf3 {[%clk 0:03:01.1]}
2... d5 {[%clk 0:02:59]} 3. Bf4 {[%clk 0:03:00.7]} 3... c5 {[%clk 0:02:58.4]} 4.
c3 {[%clk 0:02:59.9]} 4... Qb6 {[%clk 0:02:54.5]} 5. Qb3 {[%clk 0:02:59.6]} 5...
Nc6 {[%clk 0:02:50.1]} 6. Nbd2 {[%clk 0:02:56]} 6... c4 {[%clk 0:02:40.4]} 7.
Qc2 {[%clk 0:02:55.1]} 7... g6 {[%clk 0:02:36.9]} 8. e4 {[%clk 0:02:54.3]} 8...
dxe4 {[%clk 0:02:30.4]} 9. Nxc4 {[%clk 0:02:53]} 9... Qd8 {[%clk 0:02:26.9]} 10.
Nfe5 {[%clk 0:02:53.7]} 10... Bg7 {[%clk 0:02:23.5]} 11. Be2 {[%clk 0:02:44.4]}
11... O-O {[%clk 0:02:15]} 12. O-O {[%clk 0:02:44.5]} 12... Bf5 {[%clk
0:02:02.5]} 13. Qb3 {[%clk 0:02:41.5]} 13... Nd5 {[%clk 0:02:00]} 14. Bg3 {[%clk
0:02:35.9]} 14... Nxe5 {[%clk 0:01:57.1]} 15. Nxe5 {[%clk 0:02:34.1]} 15... Bc8
{[%clk 0:01:40.8]} 16. f3 {[%clk 0:01:55]} 16... Ne3 {[%clk 0:01:23.7]} 17. fxe4
{[%clk 0:01:43.5]} 17... Nxf1 {[%clk 0:01:23.3]} 18. Rxf1 {[%clk 0:01:44.4]}
18... e6 {[%clk 0:01:22]} 19. Nc4 {[%clk 0:01:28]} 19... b6 {[%clk 0:01:01.3]}
20. Nd6 {[%clk 0:01:22.6]} 20... Bd7 {[%clk 0:01:01.7]} 21. e5 {[%clk
0:01:18.1]} 21... Qe7 {[%clk 0:00:56.5]} 22. Bf3 {[%clk 0:01:08.2]} 22... Rad8
{[%clk 0:00:56.6]} 23. Qa3 {[%clk 0:01:05]} 23... f6 {[%clk 0:00:53.3]} 24. Qxa7
{[%clk 0:00:55.4]} 24... fxe5 {[%clk 0:00:52.9]} 25. dxe5 {[%clk 0:00:56.3]}
25... Bh6 {[%clk 0:00:51.6]} 26. b4 {[%clk 0:00:32.8]} 26... Be3+ {[%clk
0:00:48.8]} 27. Kh1 {[%clk 0:00:32.9]} 27... Bf4 {[%clk 0:00:49.6]} 28. Bxf4
{[%clk 0:00:25.7]} 28... Rxf4 {[%clk 0:00:50.5]} 29. Qxb6 {[%clk 0:00:26.2]}
29... Rdf8 {[%clk 0:00:43.6]} 30. b5 {[%clk 0:00:13.5]} 30... g5 {[%clk
0:00:42.1]} 31. Rg1 {[%clk 0:00:09.2]} 31... g4 {[%clk 0:00:41.5]} 32. Be2
{[%clk 0:00:07.6]} 32... g3 {[%clk 0:00:38.7]} 33. h3 {[%clk 0:00:06.2]} 33...
Rf2 {[%clk 0:00:34.8]} 34. Bg4 {[%clk 0:00:06.5]} 34... Rf1 {[%clk 0:00:28.9]}
35. Qe3 {[%clk 0:00:05.7]} 35... Qh4 {[%clk 0:00:19.9]} 36. c4 {[%clk 0:00:06]}
36... h5 {[%clk 0:00:18]} 37. Be2 {[%clk 0:00:02.9]} 37... Rxg1+ {[%clk
0:00:17.9]} 38. Kxg1 {[%clk 0:00:03.8]} 38... Rf2 {[%clk 0:00:15.9]} 39. c5
{[%clk 0:00:02.5]} 39... Kf8 {[%clk 0:00:11]} 40. c6 {[%clk 0:00:02.6]} 40...
Qb4 {[%clk 0:00:11.7]} 41. Qxg3 {[%clk 0:00:02.1]} 41... Rxe2 {[%clk 0:00:08.7]}
42. cxd7 {[%clk 0:00:01.6]} 42... Ke7 {[%clk 0:00:04]} 43. Kh2 {[%clk
0:00:02.1]} 43... Kxd7 {[%clk 0:00:04.3]} 44. b6 {[%clk 0:00:02.2]} 44... Qxb6
{[%clk 0:00:03.1]} 45. Qg7+ {[%clk 0:00:02.4]} 45... Kc6 {[%clk 0:00:03.8]} 46.
Qg3 {[%clk 0:00:01.6]} 46... Qf2 {[%clk 0:00:04.1]} 47. Qxf2 {[%clk 0:00:01.6]}
47... Rxf2 {[%clk 0:00:05]} 48. a4 {[%clk 0:00:02.3]} 48... Ra2 {[%clk
0:00:05.2]} 49. Kg3 {[%clk 0:00:02]} 49... Rxa4 {[%clk 0:00:05.9]} 50. Ne8
{[%clk 0:00:02.1]} 50... Kd5 {[%clk 0:00:06.3]} 51. Nf6+ {[%clk 0:00:02.1]}
51... Kxe5 {[%clk 0:00:06.9]} 52. Nxh5 {[%clk 0:00:03]} 52... Kd4 {[%clk
0:00:07.5]} 53. Kg4 {[%clk 0:00:02.6]} 53... e5 {[%clk 0:00:08.1]} 54. Kf5
{[%clk 0:00:02.3]} 54... e4 {[%clk 0:00:08.5]} 55. Nf4 {[%clk 0:00:02.8]} 55...
e3 {[%clk 0:00:08.9]} 56. g4 {[%clk 0:00:02.9]} 56... Ra5+ {[%clk 0:00:08.6]}
57. Kf6 {[%clk 0:00:03.2]} 57... Ke4 {[%clk 0:00:09]} 58. Ne2 {[%clk 0:00:03]}
58... Kf3 {[%clk 0:00:08.6]} 59. Nd4+ {[%clk 0:00:03]} 59... Kg3 {[%clk
0:00:08.6]} 60. Nf5+ {[%clk 0:00:02.5]} 60... Rxf5+ {[%clk 0:00:07.9]} 61. gxf5
{[%clk 0:00:03.4]} 61... e2 {[%clk 0:00:08.6]} 62. Kg7 {[%clk 0:00:04.3]} 62...
e1=Q {[%clk 0:00:08.8]} 63. f6 {[%clk 0:00:05.2]} 63... Qe5 {[%clk 0:00:08.9]}
64. Kg6 {[%clk 0:00:03.1]} 64... Qe6 {[%clk 0:00:07.4]} 65. Kg7 {[%clk
0:00:03.4]} 65... Qe5 {[%clk 0:00:07]} 66. Kg6 {[%clk 0:00:03.7]} 66... Qe4+
{[%clk 0:00:07.5]} 67. Kg7 {[%clk 0:00:03.9]} 67... Qd4 {[%clk 0:00:07.9]} 68.
Kg6 {[%clk 0:00:03.5]} 68... Qd8 {[%clk 0:00:06.8]} 69. Kg7 {[%clk 0:00:03.7]}
69... Kf4 {[%clk 0:00:04.7]} 70. f7 {[%clk 0:00:02.7]} 70... Qe7 {[%clk
0:00:05.1]} 71. h4 {[%clk 0:00:02.2]} 71... Kf5 {[%clk 0:00:04.5]} 72. h5 {[%clk
0:00:02.9]} 72... Ke6 {[%clk 0:00:04.5]} 73. h6 {[%clk 0:00:02.4]} 73... Qxf7+
{[%clk 0:00:05]} 74. Kh8 {[%clk 0:00:03.1]} 74... Qf6+ {[%clk 0:00:05]} 75. Kg8
{[%clk 0:00:02.9]} 75... Qg5+ {[%clk 0:00:04.4]} 76. Kh7 {[%clk 0:00:02.9]}
76... Kf7 {[%clk 0:00:04.6]} 77. Kh8 {[%clk 0:00:03.8]} 77... Qg8# {[%clk
0:00:05.2]} 0-1